[Event "Torneo Nuevo Centro. Jornada 10"]
[Site "Chess.com"]
[Date "2020.08.21"]
[Round "4"]
[White "Alvarez Usina, Jordi"]
[Black "Camison Zornoza, Cesar"]
[Result "0-1"]
[WhiteElo "1307"]
[BlackElo "1792"]
[TimeControl "180+2"]
[EndTime "11:11:44 PDT"]
[Termination "Victoria de cczchess por tiempo"]

1. d4 {[%clk 0:03:01.9]} 1... Nf6 {[%clk 0:03:00.3]} 2. Bf4 {[%clk 0:03:02.3]}
2... c5 {[%clk 0:03:01.4]} 3. e3 {[%clk 0:03:01.3]} 3... cxd4 {[%clk 0:03:02.2]}
4. exd4 {[%clk 0:02:58.4]} 4... g6 {[%clk 0:03:03.3]} 5. Nf3 {[%clk 0:02:57.6]}
5... Bg7 {[%clk 0:03:04.3]} 6. c3 {[%clk 0:02:58.3]} 6... O-O {[%clk 0:02:59.6]}
7. Bd3 {[%clk 0:02:58.5]} 7... d6 {[%clk 0:02:53.4]} 8. Nbd2 {[%clk 0:02:58.4]}
8... Bg4 {[%clk 0:02:50.9]} 9. Qc2 {[%clk 0:02:53]} 9... Nc6 {[%clk 0:02:50.8]}
10. O-O {[%clk 0:02:51.9]} 10... Rc8 {[%clk 0:02:51.7]} 11. h3 {[%clk
0:02:51.8]} 11... Nb4 {[%clk 0:02:47.9]} 12. Qb1 {[%clk 0:02:48.8]} 12... Nxd3
{[%clk 0:02:47.5]} 13. Qxd3 {[%clk 0:02:47.5]} 13... Bf5 {[%clk 0:02:47.5]} 14.
Qb5 {[%clk 0:02:42.6]} 14... a6 {[%clk 0:02:37.6]} 15. Qxb7 {[%clk 0:02:30.7]}
15... Rb8 {[%clk 0:02:37.8]} 16. Qxa6 {[%clk 0:02:30.1]} 16... Rxb2 {[%clk
0:02:38.4]} 17. Qa3 {[%clk 0:02:30.5]} 17... Qb8 {[%clk 0:02:29.9]} 18. Nc4
{[%clk 0:02:03.8]} 18... Rb7 {[%clk 0:02:23.6]} 19. Qc1 {[%clk 0:01:50.2]} 19...
Nd5 {[%clk 0:02:08.8]} 20. Bh2 {[%clk 0:01:41.2]} 20... Qc8 {[%clk 0:02:02.7]}
21. Ne3 {[%clk 0:01:25]} 21... Nxc3 {[%clk 0:01:54.5]} 22. Qd2 {[%clk
0:01:17.2]} 22... Ne4 {[%clk 0:01:23.7]} 23. Qe2 {[%clk 0:01:10.5]} 23... Ra7
{[%clk 0:01:18.8]} 24. Nxf5 {[%clk 0:01:08.1]} 24... gxf5 {[%clk 0:01:20]} 25.
Rfc1 {[%clk 0:01:03.2]} 25... Qa8 {[%clk 0:01:14.9]} 26. Rc2 {[%clk 0:00:49.3]}
26... Ra4 {[%clk 0:01:07]} 27. Rd1 {[%clk 0:00:47.9]} 27... Qd5 {[%clk
0:01:01.8]} 28. Kh1 {[%clk 0:00:15.4]} 28... Rfa8 {[%clk 0:01:02.2]} 29. Ra1
{[%clk 0:00:12.6]} 29... Bxd4 {[%clk 0:00:52.2]} 30. Rac1 {[%clk 0:00:10.6]}
30... Rxa2 {[%clk 0:00:44.1]} 31. Rc8+ {[%clk 0:00:03.8]} 31... Rxc8 {[%clk
0:00:42.1]} 32. Rxc8+ {[%clk 0:00:02.9]} 32... Kg7 {[%clk 0:00:43.4]} 0

[Event "Torneo Nuevo Centro. Jornada 10"]
[Site "Chess.com"]
[Date "2020.08.21"]
[Round "4"]
[White "Méndez Giménez , Néstor Emmanuel"]
[Black "Rodriguez Rodriguez, Joan David "]
[Result "0-1"]
[WhiteElo "1237"]
[BlackElo "1723"]
[TimeControl "180+2"]
[EndTime "11:11:48 PDT"]
[Termination "Victoria de Not_Jr_chess por jaque mate"]

1. e4 {[%clk 0:03:01.9]} 1... e5 {[%clk 0:03:01.2]} 2. Nf3 {[%clk 0:03:02.8]}
2... Nc6 {[%clk 0:03:02.6]} 3. Bc4 {[%clk 0:03:03.2]} 3... Bc5 {[%clk
0:03:02.9]} 4. c3 {[%clk 0:03:02.6]} 4... Nf6 {[%clk 0:03:03.2]} 5. d4 {[%clk
0:03:03.2]} 5... exd4 {[%clk 0:03:04.2]} 6. cxd4 {[%clk 0:03:04]} 6... Bb4+
{[%clk 0:03:05.2]} 7. Nc3 {[%clk 0:03:01.3]} 7... Nxe4 {[%clk 0:03:05]} 8. Qe2
{[%clk 0:03:00]} 8... Qe7 {[%clk 0:03:02.1]} 9. Bd2 {[%clk 0:02:51.4]} 9... Nxd2
{[%clk 0:02:42.3]} 10. Qxe7+ {[%clk 0:02:50.5]} 10... Nxe7 {[%clk 0:02:39.2]}
11. Nxd2 {[%clk 0:02:51.2]} 11... c6 {[%clk 0:02:25.6]} 12. O-O {[%clk
0:02:51.1]} 12... d5 {[%clk 0:02:25.1]} 13. Be2 {[%clk 0:02:50.4]} 13... O-O
{[%clk 0:02:25.6]} 14. a3 {[%clk 0:02:49.8]} 14... Ba5 {[%clk 0:02:25]} 15. b4
{[%clk 0:02:47.3]} 15... Bc7 {[%clk 0:02:25.6]} 16. a4 {[%clk 0:02:47.9]} 16...
Nf5 {[%clk 0:02:20.4]} 17. Nf3 {[%clk 0:02:43.2]} 17... Bd6 {[%clk 0:02:06.6]}
18. Rab1 {[%clk 0:02:36.1]} 18... Ne7 {[%clk 0:01:33.5]} 19. Rfe1 {[%clk
0:02:33]} 19... Bf5 {[%clk 0:01:32.3]} 20. Ng5 {[%clk 0:02:30.9]} 20... Bxb1
{[%clk 0:01:16.2]} 21. Rxb1 {[%clk 0:02:31.6]} 21... h6 {[%clk 0:01:13.6]} 22.
Nh3 {[%clk 0:02:30.7]} 22... Nf5 {[%clk 0:01:08]} 23. b5 {[%clk 0:02:22.6]}
23... Nxd4 {[%clk 0:01:05.2]} 24. bxc6 {[%clk 0:02:18.8]} 24... Nxe2+ {[%clk
0:00:53]} 25. Nxe2 {[%clk 0:02:19.2]} 25... bxc6 {[%clk 0:00:54.5]} 26. Rb7
{[%clk 0:02:15]} 26... Rfe8 {[%clk 0:00:54.4]} 27. Rb2 {[%clk 0:02:07.3]} 27...
a5 {[%clk 0:00:46.5]} 28. g3 {[%clk 0:02:05.6]} 28... Bb4 {[%clk 0:00:47]} 29.
Kg2 {[%clk 0:02:01]} 29... c5 {[%clk 0:00:42.3]} 30. Nef4 {[%clk 0:02:00.9]}
30... Rad8 {[%clk 0:00:39.3]} 31. Ng1 {[%clk 0:01:58.2]} 31... c4 {[%clk
0:00:37]} 32. Nf3 {[%clk 0:01:58.5]} 32... c3 {[%clk 0:00:30.4]} 33. Rc2 {[%clk
0:01:58.9]} 33... d4 {[%clk 0:00:30]} 34. Kf1 {[%clk 0:01:53]} 34... d3 {[%clk
0:00:31]} 35. Rc1 {[%clk 0:01:50.5]} 35... d2 {[%clk 0:00:30.2]} 36. Ra1 {[%clk
0:01:44.9]} 36... d1=Q+ {[%clk 0:00:26.7]} 37. Rxd1 {[%clk 0:01:41.6]} 37...
Rxd1+ {[%clk 0:00:28.6]} 38. Kg2 {[%clk 0:01:40.7]} 38... c2 {[%clk 0:00:26.8]}
39. h4 {[%clk 0:01:29.8]} 39... c1=Q {[%clk 0:00:26.1]} 40. Nh3 {[%clk
0:01:29.1]} 40... Ree1 {[%clk 0:00:24]} 41. Nxe1 {[%clk 0:01:28.2]} 41... Rxe1
{[%clk 0:00:25.1]} 42. h5 {[%clk 0:01:21.3]} 42... Qd1 {[%clk 0:00:25.8]} 43. g4
{[%clk 0:01:18.1]} 43... Qxg4+ {[%clk 0:00:24.6]} 44. Kh2 {[%clk 0:01:17.4]}
44... Bd6+ {[%clk 0:00:26.5]} 45. Nf4 {[%clk 0:01:14.4]} 45... Bxf4# {[%clk
0:00:27.7]} 0

[Event "Torneo Nuevo Centro. Jornada 10"]
[Site "Chess.com"]
[Date "2020.08.21"]
[Round "4"]
[White "Echeverria, Graciela"]
[Black "Sanchis Bon, Sergi"]
[Result "1-0"]
[WhiteElo "1468"]
[BlackElo "997"]
[TimeControl "180+2"]
[EndTime "11:11:55 PDT"]
[Termination "Victoria de graciielaaa por tiempo"]

1. e4 {[%clk 0:03:01.9]} 1... e5 {[%clk 0:02:59.6]} 2. Nc3 {[%clk 0:03:02.7]}
2... Nf6 {[%clk 0:02:58.4]} 3. Nf3 {[%clk 0:03:00.7]} 3... Nc6 {[%clk
0:02:55.3]} 4. d4 {[%clk 0:03:01.5]} 4... exd4 {[%clk 0:02:53.6]} 5. Nxd4 {[%clk
0:03:02.4]} 5... Nxd4 {[%clk 0:02:52.1]} 6. Qxd4 {[%clk 0:03:03.4]} 6... c5
{[%clk 0:02:47]} 7. Qd1 {[%clk 0:03:00.4]} 7... b6 {[%clk 0:02:30.4]} 8. Bg5
{[%clk 0:02:58.3]} 8... h6 {[%clk 0:02:27.3]} 9. Bxf6 {[%clk 0:02:59]} 9... gxf6
{[%clk 0:02:23.5]} 10. Bd3 {[%clk 0:02:55.8]} 10... Bb7 {[%clk 0:02:20.8]} 11.
O-O {[%clk 0:02:55]} 11... Rb8 {[%clk 0:02:16.2]} 12. Nd5 {[%clk 0:02:37.6]}
12... Rc8 {[%clk 0:02:04.1]} 13. Qf3 {[%clk 0:02:33.6]} 13... Bg7 {[%clk
0:02:00.2]} 14. Rfe1 {[%clk 0:02:33.9]} 14... O-O {[%clk 0:01:32.8]} 15. e5
{[%clk 0:02:31.3]} 15... fxe5 {[%clk 0:01:31.3]} 16. Bc4 {[%clk 0:02:21.2]}
16... Rb8 {[%clk 0:01:14.7]} 17. Qg4 {[%clk 0:02:14.2]} 17... Bxd5 {[%clk
0:01:07.4]} 18. Bxd5 {[%clk 0:02:10.1]} 18... Qg5 {[%clk 0:01:00.3]} 19. Qxd7
{[%clk 0:02:06.5]} 19... Rbd8 {[%clk 0:00:52.8]} 20. Qc6 {[%clk 0:02:05.3]}
20... Rc8 {[%clk 0:00:47.4]} 21. Qb7 {[%clk 0:02:04.5]} 21... Rb8 {[%clk
0:00:46.5]} 22. Qxa7 {[%clk 0:02:04.8]} 22... Rbd8 {[%clk 0:00:44.6]} 23. Bb3
{[%clk 0:02:02]} 23... Rd2 {[%clk 0:00:41.5]} 24. Qxb6 {[%clk 0:01:58.3]} 24...
Qh4 {[%clk 0:00:35.1]} 25. Rf1 {[%clk 0:01:53.6]} 25... Rd4 {[%clk 0:00:26.2]}
26. Qxc5 {[%clk 0:01:53.5]} 26... Rg4 {[%clk 0:00:23.3]} 27. g3 {[%clk
0:01:48.9]} 27... Qh3 {[%clk 0:00:21.4]} 28. Rae1 {[%clk 0:01:38.2]} 28... Rg5
{[%clk 0:00:20]} 29. Qc4 {[%clk 0:01:35.6]} 29... Rh5 {[%clk 0:00:19.5]} 30. Qh4
{[%clk 0:01:18.6]} 30... Rxh4 {[%clk 0:00:17]} 31. gxh4 {[%clk 0:01:19.3]} 31...
e4 {[%clk 0:00:15.6]} 32. Rxe4 {[%clk 0:01:17.1]} 32... Qf3 {[%clk 0:00:14.9]}
33. Re3 {[%clk 0:01:14.3]} 33... Qg4+ {[%clk 0:00:14.7]} 34. Rg3 {[%clk
0:01:14.2]} 34... Qxh4 {[%clk 0:00:15.2]} 35. Re1 {[%clk 0:01:14.1]} 35... Kh8
{[%clk 0:00:13.2]} 36. a4 {[%clk 0:01:04.5]} 36... Rc8 {[%clk 0:00:06.9]} 37. c3
{[%clk 0:01:04.3]} 37... Rd8 {[%clk 0:00:06.7]} 38. Bc2 {[%clk 0:01:01.6]} 1

[Event "Torneo Nuevo Centro. Jornada 10"]
[Site "Chess.com"]
[Date "2020.08.21"]
[Round "4"]
[White "Blanco Solaz, Ramón"]
[Black "De Nacimiento Montano, Antonio"]
[Result "1-0"]
[WhiteElo "2010"]
[BlackElo "1848"]
[TimeControl "180+2"]
[EndTime "11:12:09 PDT"]
[Termination "Victoria de Rbs77 por abandono"]

1. g3 {[%clk 0:03:01.9]} 1... c5 {[%clk 0:02:56.2]} 2. c4 {[%clk 0:03:02.8]}
2... Nc6 {[%clk 0:02:53.2]} 3. Bg2 {[%clk 0:03:03.5]} 3... g6 {[%clk 0:02:53.5]}
4. Nc3 {[%clk 0:03:04.4]} 4... Bg7 {[%clk 0:02:54.5]} 5. e4 {[%clk 0:03:05.6]}
5... e5 {[%clk 0:02:55.4]} 6. Nge2 {[%clk 0:03:06.3]} 6... d6 {[%clk 0:02:56.8]}
7. O-O {[%clk 0:03:06.4]} 7... Nge7 {[%clk 0:02:58]} 8. f4 {[%clk 0:03:06.5]}
8... O-O {[%clk 0:02:58.4]} 9. h3 {[%clk 0:03:07]} 9... f5 {[%clk 0:02:59.6]}
10. d3 {[%clk 0:03:06.1]} 10... Nd4 {[%clk 0:03:00.4]} 11. Kh2 {[%clk
0:02:58.4]} 11... Nec6 {[%clk 0:02:48.6]} 12. Nd5 {[%clk 0:02:58.3]} 12... Nxe2
{[%clk 0:02:49.8]} 13. Qxe2 {[%clk 0:02:59]} 13... Nd4 {[%clk 0:02:51.2]} 14.
Qd1 {[%clk 0:02:54.4]} 14... Be6 {[%clk 0:02:47.1]} 15. exf5 {[%clk 0:02:47.1]}
15... Nxf5 {[%clk 0:02:41.8]} 16. Nc3 {[%clk 0:02:45.4]} 16... Rb8 {[%clk
0:02:32.2]} 17. Qe1 {[%clk 0:02:38.4]} 17... Nd4 {[%clk 0:02:19.1]} 18. Rf2
{[%clk 0:02:37.7]} 18... a6 {[%clk 0:02:05.4]} 19. Be3 {[%clk 0:02:38.1]} 19...
b5 {[%clk 0:02:04.6]} 20. b3 {[%clk 0:02:34]} 20... Nf5 {[%clk 0:01:35.4]} 21.
Bd2 {[%clk 0:02:26.5]} 21... exf4 {[%clk 0:01:32.8]} 22. Rxf4 {[%clk 0:02:27.7]}
22... b4 {[%clk 0:01:34]} 23. Nd5 {[%clk 0:02:27]} 23... Bxa1 {[%clk 0:01:30.6]}
24. Qxa1 {[%clk 0:02:28.9]} 24... Nd4 {[%clk 0:01:29.8]} 25. Qf1 {[%clk
0:02:10.8]} 25... Rxf4 {[%clk 0:00:31.9]} 26. Nxf4 {[%clk 0:02:02.3]} 26... Bd7
{[%clk 0:00:21.6]} 27. Bd5+ {[%clk 0:02:01.6]} 27... Kh8 {[%clk 0:00:21.6]} 28.
Be3 {[%clk 0:01:46.6]} 28... Qf6 {[%clk 0:00:21.2]} 29. Qg2 {[%clk 0:01:41.3]}
29... Rf8 {[%clk 0:00:21.5]} 30. Be4 {[%clk 0:01:32.2]} 30... Bf5 {[%clk
0:00:21]} 31. Bb7 {[%clk 0:01:21.9]} 31... Re8 {[%clk 0:00:21.9]} 32. Nd5 {[%clk
0:01:19.7]} 32... Qe5 {[%clk 0:00:21.6]} 33. Bf4 {[%clk 0:01:19]} 33... Qe2
{[%clk 0:00:22.5]} 34. Qxe2 {[%clk 0:01:05.2]} 34... Rxe2+ {[%clk 0:00:24.4]}
35. Kh1 {[%clk 0:01:06.5]} 35... Rxa2 {[%clk 0:00:25.7]} 36. Bxd6 {[%clk
0:01:05.5]} 36... Kg7 {[%clk 0:00:24.8]} 37. Bxc5 {[%clk 0:01:06.3]} 37... Nxb3
{[%clk 0:00:23.5]} 38. Bxb4 {[%clk 0:01:07.3]} 38... Bxd3 {[%clk 0:00:23.2]} 39.
c5 {[%clk 0:01:07.4]} 39... Bb5 {[%clk 0:00:21.4]} 40. c6 {[%clk 0:01:06.5]}
40... Rc2 {[%clk 0:00:22.1]} 41. Nc3 {[%clk 0:01:07.5]} 41... Bxc6+ {[%clk
0:00:14.3]} 42. Bxc6 {[%clk 0:01:08.1]} 42... a5 {[%clk 0:00:15.3]} 43. Bd6
{[%clk 0:01:06]} 43... Rxc3 {[%clk 0:00:15.5]} 44. Be5+ {[%clk 0:01:07.2]} 44...
Kh6 {[%clk 0:00:14]} 45. Bxc3 {[%clk 0:01:09.1]} 45... a4 {[%clk 0:00:15.1]} 46.
Bxa4 {[%clk 0:01:10.1]} 46... Nc1 {[%clk 0:00:15.9]} 47. Bd2+ {[%clk 0:01:11.4]}
1

[Event "Torneo Nuevo Centro. Jornada 10"]
[Site "Chess.com"]
[Date "2020.08.21"]
[Round "4"]
[White "Hassomal Daswani, Birjkumar"]
[Black "Mellado Sais, Carles"]
[Result "0-1"]
[WhiteElo "1805"]
[BlackElo "1412"]
[TimeControl "180+2"]
[EndTime "11:12:19 PDT"]
[Termination "Victoria de Magnus_carles por abandono"]

1. e4 {[%clk 0:03:01.9]} 1... c5 {[%clk 0:02:59.1]} 2. Nf3 {[%clk 0:03:01.6]}
2... d6 {[%clk 0:02:58.4]} 3. d4 {[%clk 0:03:00.5]} 3... cxd4 {[%clk 0:02:56.7]}
4. Nxd4 {[%clk 0:03:01.4]} 4... Nf6 {[%clk 0:02:56.1]} 5. Nc3 {[%clk 0:03:02]}
5... a6 {[%clk 0:02:56.1]} 6. f3 {[%clk 0:03:00.9]} 6... e5 {[%clk 0:02:49.7]}
7. Nb3 {[%clk 0:03:00.1]} 7... Be7 {[%clk 0:02:48.6]} 8. Be3 {[%clk 0:03:00.7]}
8... O-O {[%clk 0:02:46.4]} 9. Qd2 {[%clk 0:03:01.5]} 9... Nc6 {[%clk
0:02:40.2]} 10. O-O-O {[%clk 0:03:01.7]} 10... Be6 {[%clk 0:02:38.5]} 11. Kb1
{[%clk 0:03:02.1]} 11... Bxb3 {[%clk 0:02:33.6]} 12. cxb3 {[%clk 0:03:01.7]}
12... Rc8 {[%clk 0:02:26.3]} 13. g4 {[%clk 0:03:01.1]} 13... Qc7 {[%clk
0:02:08.8]} 14. h4 {[%clk 0:03:01.2]} 14... Nd7 {[%clk 0:01:35.1]} 15. Nd5
{[%clk 0:02:57.6]} 15... Qd8 {[%clk 0:01:33.1]} 16. Bg5 {[%clk 0:02:57.7]} 16...
f6 {[%clk 0:01:32.4]} 17. Be3 {[%clk 0:02:58]} 17... Nc5 {[%clk 0:01:24.9]} 18.
g5 {[%clk 0:02:55.1]} 18... fxg5 {[%clk 0:01:21.9]} 19. hxg5 {[%clk 0:02:55.6]}
19... Rxf3 {[%clk 0:01:13.4]} 20. Bh3 {[%clk 0:02:38.4]} 20... Nxe4 {[%clk
0:01:10.4]} 21. Be6+ {[%clk 0:02:36.5]} 21... Kh8 {[%clk 0:01:09.6]} 22. Rxh7+
{[%clk 0:02:36.6]} 22... Kxh7 {[%clk 0:01:08.1]} 23. Rh1+ {[%clk 0:02:30.1]}
23... Kg6 {[%clk 0:01:07.6]} 24. Qd3 {[%clk 0:02:25.6]} 24... Nd4 {[%clk
0:00:42.3]} 25. Qxe4+ {[%clk 0:02:25.6]} 25... Nf5 {[%clk 0:00:26.1]} 26. Qxf3
{[%clk 0:02:13.4]} 26... Qf8 {[%clk 0:00:20.5]} 27. Bxc8 {[%clk 0:02:12.3]}
27... Qxc8 {[%clk 0:00:15.9]} 28. Qxf5+ {[%clk 0:02:13]} 28... Qxf5+ {[%clk
0:00:14.9]} 29. Ka1 {[%clk 0:02:12.3]} 29... Qf3 {[%clk 0:00:11.9]} 30. Nxe7+
{[%clk 0:02:09.3]} 30... Kf7 {[%clk 0:00:11.2]} 31. g6+ {[%clk 0:01:59.7]} 31...
Kxe7 {[%clk 0:00:11.4]} 32. Bg5+ {[%clk 0:02:00.9]} 32... Ke6 {[%clk 0:00:11.4]}
33. Rc1 {[%clk 0:02:02]} 33... Qg4 {[%clk 0:00:11]} 34. Bd2 {[%clk 0:02:02.2]}
34... Qe2 {[%clk 0:00:11]} 35. Bg5 {[%clk 0:02:01.6]} 35... Kf5 {[%clk
0:00:11.2]} 36. Be7 {[%clk 0:01:57.8]} 36... Qd2 {[%clk 0:00:09.4]} 37. Rg1
{[%clk 0:01:53.6]} 37... e4 {[%clk 0:00:09.8]} 38. a3 {[%clk 0:01:54.1]} 38...
e3 {[%clk 0:00:10.7]} 39. Bg5 {[%clk 0:01:53.2]} 39... Qd3 {[%clk 0:00:07.6]}
40. Rg3 {[%clk 0:01:51.3]} 40... Qe4 {[%clk 0:00:07]} 41. Rxe3 {[%clk
0:01:51.3]} 41... Qh1+ {[%clk 0:00:06.1]} 42. Ka2 {[%clk 0:01:51.6]} 42... Kxg5
{[%clk 0:00:06.7]} 43. Rd3 {[%clk 0:01:49.6]} 43... Kxg6 {[%clk 0:00:07.7]} 44.
Rxd6+ {[%clk 0:01:50]} 44... Kf7 {[%clk 0:00:07.8]} 45. Rd3 {[%clk 0:01:50]}
45... g5 {[%clk 0:00:09]} 0

[Event "Torneo Nuevo Centro. Jornada 10"]
[Site "Chess.com"]
[Date "2020.08.21"]
[Round "4"]
[White "Kovacevic, Slobodan"]
[Black "Montesinos Diaz, Luis"]
[Result "1-0"]
[WhiteElo "2310"]
[BlackElo "1871"]
[TimeControl "180+2"]
[EndTime "11:12:42 PDT"]
[Termination "Victoria de nikko110 por abandono"]

1. d4 {[%clk 0:03:01.9]} 1... d5 {[%clk 0:02:55.1]} 2. Bf4 {[%clk 0:03:00.3]}
2... Nf6 {[%clk 0:02:55.3]} 3. Nd2 {[%clk 0:02:51.3]} 3... Bf5 {[%clk
0:02:54.8]} 4. e3 {[%clk 0:02:50.6]} 4... e6 {[%clk 0:02:54.8]} 5. c3 {[%clk
0:02:50.1]} 5... c5 {[%clk 0:02:52.6]} 6. Qb3 {[%clk 0:02:45.9]} 6... Qd7 {[%clk
0:02:48]} 7. Bb5 {[%clk 0:02:42.2]} 7... Nc6 {[%clk 0:02:48.6]} 8. Ngf3 {[%clk
0:02:42.2]} 8... a6 {[%clk 0:02:43.9]} 9. Ne5 {[%clk 0:02:39.2]} 9... Qc8 {[%clk
0:02:44.4]} 10. Bxc6+ {[%clk 0:02:34.4]} 10... bxc6 {[%clk 0:02:45.2]} 11. Qa4
{[%clk 0:02:33.6]} 11... Bd6 {[%clk 0:02:11.6]} 12. Qxc6+ {[%clk 0:02:12.9]}
12... Qxc6 {[%clk 0:02:11.7]} 13. Nxc6 {[%clk 0:02:12.5]} 13... Bxf4 {[%clk
0:02:12.7]} 14. exf4 {[%clk 0:02:11.6]} 14... Rc8 {[%clk 0:02:09.2]} 15. Ne5
{[%clk 0:02:07.5]} 15... cxd4 {[%clk 0:02:10.2]} 16. cxd4 {[%clk 0:02:06.1]}
16... Rc2 {[%clk 0:02:10.9]} 17. b3 {[%clk 0:02:04.3]} 17... O-O {[%clk
0:02:08.4]} 18. Nef3 {[%clk 0:02:01.3]} 18... Rfc8 {[%clk 0:02:05.8]} 19. O-O
{[%clk 0:02:00.4]} 19... Ne4 {[%clk 0:02:03.9]} 20. Nxe4 {[%clk 0:01:55.8]}
20... Bxe4 {[%clk 0:02:05.8]} 21. Ne5 {[%clk 0:01:53.2]} 21... f6 {[%clk
0:02:05.2]} 22. Nd7 {[%clk 0:01:52.6]} 22... R8c7 {[%clk 0:02:01.1]} 23. Nc5
{[%clk 0:01:51.5]} 23... e5 {[%clk 0:01:50.2]} 24. fxe5 {[%clk 0:01:49.8]} 24...
fxe5 {[%clk 0:01:50.6]} 25. Nxa6 {[%clk 0:01:49]} 25... Rf7 {[%clk 0:01:43.8]}
26. Nb4 {[%clk 0:01:42.7]} 26... Rb2 {[%clk 0:01:40.8]} 27. dxe5 {[%clk
0:01:41.2]} 27... d4 {[%clk 0:01:36.6]} 28. f3 {[%clk 0:01:40.3]} 28... Ba8
{[%clk 0:01:35]} 29. Rf2 {[%clk 0:01:39.3]} 29... Rxf2 {[%clk 0:01:32.6]} 30.
Kxf2 {[%clk 0:01:38.7]} 30... Rf5 {[%clk 0:01:33.2]} 31. Rc1 {[%clk 0:01:33.6]}
31... Kf7 {[%clk 0:01:31.3]} 32. Rc5 {[%clk 0:01:32.8]} 32... Ke6 {[%clk
0:01:29.1]} 33. Nd3 {[%clk 0:01:31.4]} 33... g5 {[%clk 0:01:29.8]} 34. h3 {[%clk
0:01:29.6]} 34... h5 {[%clk 0:01:30.3]} 35. Kg3 {[%clk 0:01:26.3]} 35... g4
{[%clk 0:01:22.2]} 36. hxg4 {[%clk 0:01:25]} 36... hxg4 {[%clk 0:01:23]} 37.
Kxg4 {[%clk 0:01:25.3]} 37... Rf8 {[%clk 0:01:18.3]} 38. Nf4+ {[%clk 0:01:24.1]}
38... Kd7 {[%clk 0:01:17.3]} 39. Rc4 {[%clk 0:01:23.1]} 39... Rg8+ {[%clk
0:01:15.4]} 40. Kh4 {[%clk 0:01:21.7]} 40... Ke7 {[%clk 0:01:11.5]} 41. Rxd4
{[%clk 0:01:20]} 41... Re8 {[%clk 0:01:13.4]} 42. b4 {[%clk 0:01:16.2]} 42...
Kf7 {[%clk 0:01:12.9]} 43. e6+ {[%clk 0:01:15.2]} 43... Kf6 {[%clk 0:01:13.4]}
44. Kg3 {[%clk 0:01:13.5]} 44... Kf5 {[%clk 0:01:14.2]} 45. Kf2 {[%clk
0:01:12.9]} 45... Kg5 {[%clk 0:01:16.1]} 46. Ke3 {[%clk 0:01:10.5]} 46... Bb7
{[%clk 0:01:15.1]} 47. a4 {[%clk 0:01:09.2]} 47... Kf5 {[%clk 0:01:13.8]} 48.
g4+ {[%clk 0:01:07.5]} 48... Kf6 {[%clk 0:01:13.8]} 49. b5 {[%clk 0:01:06.5]}
49... Ra8 {[%clk 0:01:12.8]} 50. Rb4 {[%clk 0:01:00.5]} 50... Bc8 {[%clk
0:01:07.4]} 51. b6 {[%clk 0:00:59.7]} 51... Bb7 {[%clk 0:01:02.7]} 52. Nd3
{[%clk 0:00:58.2]} 52... Rc8 {[%clk 0:00:58.1]} 53. a5 {[%clk 0:00:56]} 53...
Kxe6 {[%clk 0:00:58.2]} 54. Ra4 {[%clk 0:00:53.7]} 54... Ba6 {[%clk 0:00:51.3]}
55. Nb4 {[%clk 0:00:50.2]} 55... Rc3+ {[%clk 0:00:51.2]} 56. Kd2 {[%clk
0:00:47.9]} 56... Rxf3 {[%clk 0:00:47.6]} 57. Nxa6 {[%clk 0:00:46.8]} 1

[Event "Torneo Nuevo Centro. Jornada 10"]
[Site "Chess.com"]
[Date "2020.08.21"]
[Round "4"]
[White "Sampedro Roig, Josep Francesc"]
[Black "Buenafe Moya, Javier"]
[Result "1/2-1/2"]
[WhiteElo "1824"]
[BlackElo "1941"]
[TimeControl "180+2"]
[EndTime "11:12:44 PDT"]
[Termination "Partida en tablas por material insuficiente"]

1. e4 {[%clk 0:03:01]} 1... e5 {[%clk 0:02:58.2]} 2. Nf3 {[%clk 0:03:00.9]} 2...
Nc6 {[%clk 0:02:58.1]} 3. Bb5 {[%clk 0:03:01.6]} 3... Nf6 {[%clk 0:02:51.2]} 4.
O-O {[%clk 0:03:02.4]} 4... Nxe4 {[%clk 0:02:50.1]} 5. d4 {[%clk 0:03:01]} 5...
Nd6 {[%clk 0:02:50.2]} 6. Bxc6 {[%clk 0:03:01]} 6... dxc6 {[%clk 0:02:50.9]} 7.
dxe5 {[%clk 0:03:02.5]} 7... Nf5 {[%clk 0:02:51.9]} 8. Qxd8+ {[%clk 0:03:04]}
8... Kxd8 {[%clk 0:02:52.6]} 9. Rd1+ {[%clk 0:03:05.9]} 9... Ke8 {[%clk
0:02:52.4]} 10. b3 {[%clk 0:03:07.8]} 10... Bd7 {[%clk 0:02:39.3]} 11. Bb2
{[%clk 0:03:08.8]} 11... b6 {[%clk 0:02:28.4]} 12. Nbd2 {[%clk 0:03:07.7]} 12...
c5 {[%clk 0:02:26.8]} 13. Ne4 {[%clk 0:02:58.3]} 13... h6 {[%clk 0:02:24.4]} 14.
Ng3 {[%clk 0:02:45.4]} 14... Nxg3 {[%clk 0:02:19]} 15. hxg3 {[%clk 0:02:46.3]}
15... Bc6 {[%clk 0:02:14.2]} 16. Rd2 {[%clk 0:02:37.8]} 16... Rd8 {[%clk
0:02:14.4]} 17. Rad1 {[%clk 0:02:38.3]} 17... Rxd2 {[%clk 0:02:14.3]} 18. Rxd2
{[%clk 0:02:37.1]} 18... h5 {[%clk 0:02:07.5]} 19. Nh4 {[%clk 0:02:37.7]} 19...
Rh6 {[%clk 0:02:06.7]} 20. Nf5 {[%clk 0:02:26.4]} 20... Re6 {[%clk 0:02:05.7]}
21. f4 {[%clk 0:02:25.8]} 21... g6 {[%clk 0:02:04.2]} 22. Ne3 {[%clk 0:02:26]}
22... Bh6 {[%clk 0:02:01]} 23. Nd5 {[%clk 0:02:23.5]} 23... Bxd5 {[%clk
0:01:55.7]} 24. Rxd5 {[%clk 0:02:24.3]} 24... h4 {[%clk 0:01:56.2]} 25. Kf2
{[%clk 0:02:21.8]} 25... hxg3+ {[%clk 0:01:55.7]} 26. Kxg3 {[%clk 0:02:22.7]}
26... Ke7 {[%clk 0:01:54.8]} 27. Kf3 {[%clk 0:02:18.7]} 27... Bg7 {[%clk
0:01:51.2]} 28. g4 {[%clk 0:02:14.5]} 28... c4 {[%clk 0:01:51.5]} 29. Ba3+
{[%clk 0:02:00.1]} 29... Ke8 {[%clk 0:01:48.5]} 30. Bb2 {[%clk 0:01:55.1]} 30...
cxb3 {[%clk 0:01:48.1]} 31. cxb3 {[%clk 0:01:53.8]} 31... Rc6 {[%clk 0:01:48.6]}
32. Rd2 {[%clk 0:01:47.4]} 32... a5 {[%clk 0:01:40]} 33. f5 {[%clk 0:01:45.2]}
33... gxf5 {[%clk 0:01:35.3]} 34. gxf5 {[%clk 0:01:46.1]} 34... Bh6 {[%clk
0:01:35.4]} 35. Rh2 {[%clk 0:01:46.6]} 35... Bc1 {[%clk 0:01:34.9]} 36. Bxc1
{[%clk 0:01:46.3]} 36... Rxc1 {[%clk 0:01:35]} 37. Kf4 {[%clk 0:01:46.3]} 37...
Rg1 {[%clk 0:01:12.3]} 38. Ke4 {[%clk 0:01:44.6]} 38... Re1+ {[%clk 0:00:58.8]}
39. Kd5 {[%clk 0:01:45.3]} 39... Rd1+ {[%clk 0:00:59.8]} 40. Kc6 {[%clk
0:01:41.2]} 40... Rc1+ {[%clk 0:01:00.8]} 41. Kb7 {[%clk 0:01:34.3]} 41... Rc5
{[%clk 0:01:00.4]} 42. Re2 {[%clk 0:01:34.8]} 42... Ke7 {[%clk 0:01:00.2]} 43.
e6 {[%clk 0:01:26.9]} 43... fxe6 {[%clk 0:00:55.9]} 44. Rxe6+ {[%clk 0:01:26.9]}
44... Kd7 {[%clk 0:00:56.1]} 45. Rh6 {[%clk 0:01:24.4]} 45... Rxf5 {[%clk
0:00:53.1]} 46. Rh7+ {[%clk 0:01:25.4]} 46... Kd6 {[%clk 0:00:53.5]} 47. Rxc7
{[%clk 0:01:24.8]} 47... b5 {[%clk 0:00:54]} 48. Kb6 {[%clk 0:01:20.9]} 48... a4
{[%clk 0:00:39.9]} 49. Rc6+ {[%clk 0:01:20.9]} 49... Kd7 {[%clk 0:00:38.7]} 50.
Rc5 {[%clk 0:01:16.8]} 50... Rf2 {[%clk 0:00:28.4]} 51. bxa4 {[%clk 0:01:06.3]}
51... bxa4 {[%clk 0:00:27.9]} 52. Ra5 {[%clk 0:00:57.7]} 52... Rxa2 {[%clk
0:00:27.4]} 53. Kb5 {[%clk 0:00:58.8]} 53... a3 {[%clk 0:00:27.8]} 54. Kb4
{[%clk 0:00:59.9]} 54... Ra1 {[%clk 0:00:28.5]} 55. Rxa3 {[%clk 0:01:01]} 55...
Rxa3 {[%clk 0:00:29.5]} 56. Kxa3 {[%clk 0:01:02.2]} 1/2-1